bitfinex/quotes_SOLUSD_20220302
["timestamp","ask_amount","ask_price","bid_price","bid_amount"]
[1646231123388,57.29536465,101.43,101.37,17.0892837]
[1646231123587,0.40177145,101.42,101.37,17.0892837]
[1646231123988,0.40177145,101.42,101.37,16.8392837]
[1646231124188,0.40177145,101.42,101.35,13.66554522]
[1646231124388,16.1731412,101.41,101.36,6.0]
[1646231124590,16.1731412,101.41,101.35,6.0]
[1646231124989,16.1731412,101.41,101.36,28.42050178]
[1646231125392,16.1731412,101.41,101.36,0.25]
[1646231125589,16.1731412,101.41,101.35,0.25]
[1646231125792,16.1731412,101.41,101.34,10.194]
[1646231126191,16.1731412,101.41,101.34,21.0486]
[1646231126593,16.1731412,101.41,101.34,6.25]
[1646231126794,16.1731412,101.41,101.34,0.25]
[1646231126994,16.1731412,101.41,101.33,4.194]
[1646231127493,16.1731412,101.41,101.33,0.25]
[1646231127694,16.1731412,101.41,101.31,32.91798258]
[1646231127898,16.1731412,101.41,101.31,77.33819372]
[1646231128092,16.1731412,101.41,101.31,101.47855573]
[1646231128294,16.1731412,101.41,101.31,97.53455573]
[1646231128495,16.1731412,101.41,101.31,97.28455573]
[1646231129793,16.1731412,101.41,101.31,97.53455573]
[1646231130193,16.1731412,101.41,101.31,75.94323375]
[1646231130593,234.7731412,101.41,101.31,75.94323375]
[1646231130995,249.5755412,101.41,101.31,75.94323375]
[1646231131696,6.0,101.4,101.31,75.94323375]
[1646231131895,57.29536465,101.39,101.31,75.94323375]
[1646231132198,57.29536465,101.39,101.32,3.946]
[1646231132395,57.29536465,101.39,101.32,4.196]
[1646231133796,57.29536465,101.39,101.32,0.25]
[1646231133996,57.29536465,101.39,101.31,75.94323375]
[1646231134196,56.29536465,101.39,101.31,75.94323375]
[1646231134398,56.29536465,101.39,101.31,75.69323375]
[1646231135199,56.29536465,101.39,101.32,6.0]
[1646231135399,56.29536465,101.39,101.33,31.49773347]
[1646231135900,56.29536465,101.39,101.33,31.74773347]
[1646231136900,56.29536465,101.39,101.33,31.70268913]
[1646231138799,56.29536465,101.39,101.33,34.25172916]
[1646231139500,56.29536465,101.39,101.33,34.00172916]
[1646231139699,56.29536465,101.39,101.33,31.45268913]
[1646231140702,56.29536465,101.39,101.34,6.0]
[1646231140909,218.6,101.4,101.35,46.47581806]
[1646231141103,218.6,101.4,101.36,6.0]
[1646231141304,218.6,101.4,101.36,6.25]
[1646231141802,218.6,101.4,101.37,29.46128301]
[1646231142004,218.6,101.4,101.38,3.03219997]
[1646231142224,222.544,101.47,101.38,20.96219997]
[1646231142403,218.6,101.42,101.39,6.0]
[1646231142604,218.6,101.42,101.39,17.79]
[1646231142807,218.6,101.42,101.39,22.26527121]
[1646231143006,218.6,101.42,101.4,2.31793594]
[1646231143204,218.6,101.42,101.41,3.03219997]
[1646231143406,218.6,101.42,101.41,0.25]
[1646231144002,246.26982522,101.42,101.41,0.25]
[1646231144404,218.6,101.42,101.41,3.03219997]
[1646231144603,218.6,101.42,101.41,3.28219997]
[1646231145407,218.6,101.42,101.41,17.01609251]
[1646231145807,218.6,101.42,101.41,3.28219997]
[1646231146411,44.8,101.42,101.41,3.28219997]
[1646231146710,3.944,101.51,101.42,2.33209336]
[1646231146910,6.0,101.5,101.43,6.0]
[1646231147137,2.23681339,101.52,101.43,17.79]
[1646231147337,2.23681339,101.52,101.44,49.16082043]
[1646231147338,42.81730685,101.51,101.44,49.16082043]
[1646231147537,42.81730685,101.51,101.46,24.72067372]
[1646231147736,42.81730685,101.51,101.46,27.09676694]
[1646231148136,42.81730685,101.51,101.46,36.51067372]
[1646231149237,42.81730685,101.51,101.46,38.57584202]
[1646231149438,42.81730685,101.51,101.46,44.18484202]
[1646231149640,3.94,101.55,101.46,44.18484202]
[1646231149841,6.0,101.54,101.46,44.18484202]
[1646231150239,6.0,101.54,101.46,58.96604202]
[1646231150439,6.0,101.54,101.46,61.51508205]
[1646231150641,46.38696038,101.53,101.48,49.16082043]
[1646231150840,46.38696038,101.53,101.48,51.53807293]
[1646231151440,46.38696038,101.53,101.48,63.07807293]
[1646231152139,46.38696038,101.53,101.48,77.85607293]
[1646231155143,46.38696038,101.53,101.48,13.6672525]
[1646231155342,0.32429348,101.52,101.45,2.42217638]
[1646231155542,0.32429348,101.52,101.45,11.54]
[1646231155943,46.38696038,101.53,101.45,11.54]
[1646231156146,46.38696038,101.53,101.46,49.44558904]
[1646231156544,46.38696038,101.53,101.46,49.69558904]
[1646231157145,61.17086038,101.53,101.46,49.69558904]
[1646231157549,61.17086038,101.53,101.46,51.82687689]
[1646231160850,61.17086038,101.53,101.46,0.25]
[1646231161050,0.30363312,101.52,101.45,28.70460536]
[1646231161952,26.08154547,101.51,101.45,11.79]
[1646231162151,26.08154547,101.51,101.45,0.25]
[1646231162352,26.08154547,101.51,101.44,3.94]
[1646231163354,0.30302438,101.5,101.44,3.94]
[1646231163756,8.52802438,101.5,101.41,2.1246355]
[1646231163954,8.52802438,101.5,101.37,14.8764]
[1646231163955,10.76495287,101.5,101.39,11.54]
[1646231164155,109.51495287,101.5,101.39,11.54]
[1646231164356,10.76495287,101.5,101.38,16.90350401]
[1646231164558,0.30302438,101.48,101.38,16.90350401]
[1646231164856,42.44696039,101.48,101.38,61.86702262]
[1646231165059,14.7944,101.46,101.38,61.86702262]
[1646231165257,26.08154547,101.45,101.38,61.86702262]
[1646231165458,26.08154547,101.45,101.38,16.90350401]
[1646231165661,6.0,101.44,101.36,11.54]
[1646231165883,0.41512921,101.43,101.34,34.87581541]
[1646231166060,6.41512921,101.44,101.34,2.3511601]
[1646231166261,14.8014,101.41,101.31,5.0]
[1646231166457,42.8620896,101.4,101.32,54.00654445]
[1646231166658,42.44696039,101.4,101.32,56.07057009]
[1646231167060,42.44696039,101.4,101.32,154.82057009]
[1646231167256,42.44696039,101.4,101.32,186.28776016]
[1646231167457,42.44696039,101.4,101.33,6.0]
[1646231167657,42.44696039,101.4,101.34,26.14327161]
[1646231168058,42.44696039,101.4,101.34,23.81494969]
[1646231168258,42.44696039,101.4,101.34,0.25]
[1646231168460,57.24976039,101.4,101.33,6.25]
[1646231168658,57.24976039,101.4,101.34,6.0]
[1646231168861,57.24976039,101.4,101.33,0.25]
[1646231169059,57.24976039,101.4,101.32,6.0]
[1646231169659,57.24976039,101.4,101.33,21.43178533]
[1646231169860,57.24976039,101.4,101.34,6.0]
[1646231170561,57.24976039,101.4,101.34,6.25]
[1646231172361,57.24976039,101.4,101.34,0.25]
[1646231172562,57.24976039,101.4,101.33,21.68178533]
[1646231172764,6.0,101.39,101.33,0.25]
[1646231172966,6.0,101.39,101.32,11.79]
[1646231173387,6.0,101.39,101.3,11.54]
[1646231173388,8.23692849,101.39,101.3,11.54]
[1646231173587,0.24860181,101.38,101.31,6.0]
[1646231173790,26.08154547,101.38,101.3,6.0]
[1646231173990,26.08154547,101.38,101.31,21.55627169]
[1646231174391,26.08154547,101.38,101.31,24.04800845]
[1646231174590,26.08154547,101.38,101.31,24.29800845]
[1646231175491,26.08154547,101.38,101.31,43.06300845]
[1646231175690,14.8021,101.41,101.31,43.06300845]
[1646231175892,14.8021,101.41,101.31,141.81300845]
[1646231176093,53.2914,101.42,101.31,141.81300845]
[1646231176094,3.946,101.42,101.31,141.81300845]
[1646231176291,3.946,101.42,101.32,23.0376194]
[1646231176494,3.946,101.42,101.33,11.54]
[1646231176692,43.54349853,101.43,101.34,55.34931025]
[1646231176893,14.7996,101.42,101.34,69.60894031]
[1646231177094,43.54349853,101.43,101.34,69.60894031]
[1646231177794,6.0,101.42,101.34,69.60894031]
[1646231177994,39.78610733,101.41,101.34,69.60894031]
[1646231178492,39.78610733,101.41,101.34,58.06894031]
[1646231178693,39.78610733,101.41,101.34,0.25]
[1646231178895,39.78610733,101.41,101.33,0.25]
[1646231179095,14.8027,101.4,101.32,19.48232948]
[1646231179294,0.27726963,101.4,101.3,11.54]
[1646231179493,5.91226963,101.4,101.3,11.54]
[1646231179693,43.54349853,101.39,101.31,55.60497643]
[1646231180697,24.98500733,101.37,101.31,55.60497643]
[1646231180897,24.98500733,101.37,101.31,57.99030543]
[1646231181095,24.98500733,101.37,101.31,62.03080708]
[1646231182999,24.98500733,101.37,101.31,58.08380708]
[1646231185003,24.98500733,101.37,101.31,69.62380708]
[1646231185402,14.8041,101.39,101.31,69.62380708]
[1646231185603,6.0,101.38,101.31,69.62380708]
[1646231186004,14.802,101.41,101.31,168.37380708]
[1646231186203,6.0,101.4,101.32,22.88526085]
[1646231186404,50.32567173,101.4,101.33,36.18360619]
[1646231186603,50.32567173,101.4,101.33,36.43360619]
[1646231187609,50.32567173,101.4,101.33,135.18360619]
[1646231187909,50.32567173,101.4,101.33,36.43360619]
[1646231189010,50.32567173,101.4,101.33,40.37960619]
[1646231190107,6.0,101.4,101.33,40.37960619]
[1646231190307,14.7993,101.43,101.33,40.37960619]
[1646231191108,53.02058665,101.42,101.33,40.37960619]
[1646231192208,0.25340627,101.41,101.33,40.37960619]
[1646231192408,53.02058665,101.42,101.33,40.37960619]
[1646231194011,6.0,101.41,101.33,40.37960619]
[1646231195612,15.50791921,101.4,101.33,40.37960619]
[1646231197119,0.43318448,101.39,101.33,40.37960619]
[1646231197516,15.50791921,101.4,101.33,40.37960619]
[1646231197922,15.50791921,101.4,101.33,40.12960619]
[1646231198117,15.50791921,101.4,101.33,24.64360619]
[1646231199117,30.31081921,101.4,101.33,24.89360619]
[1646231200819,30.31081921,101.4,101.33,24.64360619]
[1646231201020,30.31081921,101.4,101.33,24.89360619]
[1646231202520,15.50791921,101.4,101.33,24.89360619]
[1646231202920,15.50791921,101.4,101.33,36.43360619]
[1646231203119,6.0,101.39,101.33,36.43360619]
[1646231204020,15.50791921,101.4,101.33,36.43360619]
[1646231205122,15.50791921,101.4,101.33,24.89360619]
[1646231206424,14.8007,101.42,101.33,33.20460619]
[1646231206823,6.0,101.41,101.33,44.74460619]
[1646231207427,59.86096064,101.43,101.33,44.74460619]
[1646231207623,8.66754522,101.41,101.33,44.74460619]
[1646231208025,6.0,101.42,101.33,44.74460619]
[1646231208525,3.946,101.44,101.33,44.74460619]
[1646231208723,6.0,101.43,101.33,44.74460619]
[1646231209125,64.96343619,101.43,101.33,143.49460619]
[1646231209324,3.944,101.45,101.33,251.95650619]
[1646231209524,3.944,101.48,101.36,14.7921]
[1646231209725,3.943,101.52,101.37,13.81026131]
[1646231209927,3.943,101.52,101.37,14.33904003]
[1646231210328,64.07466166,101.51,101.38,44.20063581]
[1646231210526,21.92527299,101.49,101.4,33.62085833]
[1646231210728,44.76163731,101.47,101.4,36.36921265]
[1646231211125,59.55473731,101.47,101.4,36.36921265]
[1646231212429,59.55473731,101.47,101.4,36.11921265]
[1646231212627,44.76163731,101.47,101.4,47.90921265]
[1646231212829,29.2706,101.49,101.4,47.90921265]
[1646231213028,3.943,101.5,101.4,157.77825268]
[1646231213229,27.71343807,101.55,101.4,157.77825268]
[1646231213534,17.51938873,101.54,101.4,157.77825268]
[1646231213728,0.29298422,101.52,101.4,59.02825268]
[1646231213928,11.89875804,101.49,101.4,108.31755268]
[1646231214529,11.89875804,101.49,101.4,59.02825268]
[1646231214755,11.89875804,101.49,101.4,50.45825268]
[1646231214958,49.7789004,101.47,101.4,50.45825268]
[1646231216659,49.7789004,101.47,101.4,47.90921265]
[1646231216859,49.7789004,101.47,101.4,0.25]
[1646231217061,49.7789004,101.47,101.38,19.68680554]
[1646231217260,0.34508184,101.46,101.38,11.54]
[1646231217463,14.7953,101.45,101.38,11.54]
[1646231217959,18.74960546,101.44,101.38,11.54]
[1646231218760,18.74960546,101.44,101.36,113.5449]
[1646231218962,18.74960546,101.44,101.39,57.74623446]
[1646231219162,3.944,101.5,101.39,71.76004965]
[1646231219362,6.17434212,101.51,101.39,71.76004965]
[1646231219561,17.59317179,101.5,101.39,71.76004965]
[1646231219966,14.7908,101.48,101.39,86.80034965]
[1646231220162,46.82264791,101.47,101.39,86.80034965]
[1646231221864,61.61514791,101.47,101.39,11.79]
[1646231222063,61.61514791,101.47,101.38,2.54904003]
[1646231222064,0.33495153,101.46,101.38,2.54904003]
[1646231223066,21.70585795,101.43,101.38,2.54904003]
[1646231223565,21.70585795,101.43,101.38,2.79904003]
[1646231223768,21.70585795,101.43,101.34,24.22979822]
[1646231223968,0.25404546,101.42,101.34,14.08904003]
[1646231224169,0.25404546,101.42,101.34,11.54]
[1646231224369,21.70585795,101.43,101.32,11.54]
[1646231224568,14.8013,101.41,101.32,11.54]
[1646231224868,46.82264791,101.4,101.33,55.46258842]
[1646231225971,46.82264791,101.4,101.33,55.71258842]
[1646231227672,46.82264791,101.4,101.35,24.64719003]
[1646231227872,46.82264791,101.4,101.35,24.89719003]
[1646231230571,61.62564791,101.4,101.35,0.25]
[1646231230870,6.0,101.39,101.31,28.94378216]
[1646231231271,6.0,101.39,101.29,126.79104589]
[1646231231472,21.70585795,101.38,101.3,48.30642737]
[1646231232271,46.82264791,101.36,101.3,48.30642737]
[1646231232472,46.82264791,101.36,101.29,115.25104589]
[1646231232774,46.82264791,101.36,101.27,11.54]
[1646231232972,0.25485539,101.35,101.26,45.96915192]
[1646231233172,0.25485539,101.35,101.26,57.50915192]
[1646231233395,21.70585795,101.34,101.27,69.97644851]
[1646231233573,21.70585795,101.34,101.27,72.36036373]
[1646231233773,21.70585795,101.34,101.27,57.55246373]
[1646231233974,21.70585795,101.34,101.25,13.52505558]
[1646231234174,0.37770573,101.33,101.24,11.54]
[1646231234382,14.8157,101.31,101.21,34.47802486]
[1646231234579,14.8157,101.31,101.21,28.53792334]
[1646231234978,46.82264791,101.3,101.22,61.22166056]
[1646231236077,21.70585795,101.28,101.22,61.22166056]
[1646231236480,21.70585795,101.28,101.22,61.47166056]
[1646231236877,21.70585795,101.28,101.22,61.22166056]
[1646231237079,21.70585795,101.28,101.22,2.00983708]
[1646231237280,21.70585795,101.28,101.2,11.54]
[1646231237478,0.29586272,101.27,101.19,143.2166098]
[1646231237886,21.70585795,101.28,101.19,143.2166098]
[1646231238079,21.70585795,101.28,101.19,143.4666098]
[1646231238383,21.70585795,101.28,101.2,70.90952649]
[1646231238581,21.70585795,101.28,101.2,71.15952649]
[1646231238780,21.70585795,101.28,101.2,82.69952649]
[1646231239082,21.70585795,101.28,101.2,82.44952649]
[1646231239382,14.7539,101.31,101.2,220.89012309]
[1646231239581,14.7539,101.31,101.21,6.0]
[1646231239782,14.7539,101.31,101.22,16.84952331]
[1646231239983,3.951,101.33,101.22,16.84952331]
[1646231240183,50.73523783,101.32,101.23,23.98535583]
[1646231240387,50.73523783,101.32,101.23,26.34440808]
[1646231240781,50.73523783,101.32,101.23,41.15890808]
[1646231241784,17.79326803,101.3,101.23,26.34440808]
[1646231241987,17.79326803,101.3,101.23,23.98535583]
[1646231242888,17.79326803,101.3,101.21,16.69578571]
[1646231243286,20.02461015,101.3,101.19,27.8464572]
[1646231243585,20.02461015,101.3,101.2,3.95]
[1646231243586,17.79326803,101.3,101.2,3.95]
[1646231243786,17.79326803,101.3,101.2,15.49]
[1646231243989,17.79326803,101.3,101.21,60.98350279]
[1646231244886,17.79326803,101.3,101.21,61.23350279]
[1646231245389,50.18675529,101.28,101.21,61.23350279]
[1646231247790,50.18675529,101.28,101.21,58.61885668]
[1646231249296,50.18675529,101.28,101.19,2.45165949]
[1646231249497,65.07405529,101.28,101.17,3.95]
[1646231249700,0.25390673,101.27,101.17,11.54]
[1646231249901,67.30535049,101.28,101.17,11.54]
[1646231250401,67.30535049,101.28,101.18,59.91931581]
[1646231251104,14.8253,101.27,101.18,59.91931581]
[1646231251305,18.34175057,101.26,101.18,59.91931581]
[1646231252003,6.0,101.25,101.18,59.91931581]
[1646231252206,6.0,101.25,101.19,2.54904003]
[1646231252407,6.0,101.25,101.19,8.46304003]
[1646231252604,15.0318,101.31,101.19,8.46304003]
[1646231252605,3.951,101.3,101.19,8.46304003]
[1646231253406,47.82629157,101.29,101.2,22.72133764]
[1646231253605,20.70221429,101.27,101.2,22.97133764]
[1646231254008,6.0,101.26,101.2,22.97133764]
[1646231254306,6.0,101.26,101.19,4.92111914]
[1646231254307,47.82629157,101.25,101.19,4.92111914]
[1646231254506,47.82629157,101.25,101.17,14.08904003]
[1646231254707,47.82629157,101.25,101.17,14.33904003]
[1646231255309,47.82629157,101.25,101.18,50.98384604]
[1646231258326,14.8232,101.29,101.18,68.35548607]
[1646231258524,3.951,101.3,101.18,200.29024426]
[1646231258726,78.1228,101.31,101.18,52.94770163]
[1646231258926,98.75,101.25,101.15,25.67397174]
[1646231259124,10.31581578,101.18,101.14,2.04141654]
[1646231259324,10.31581578,101.18,101.11,3.95]
[1646231259325,10.31581578,101.18,101.11,14.8316]
[1646231259525,10.31581578,101.18,101.1,3.954]
[1646231259526,10.31581578,101.18,101.09,17.96208532]
[1646231260025,66.69494328,101.18,101.1,58.84951352]
[1646231260226,66.69494328,101.18,101.12,21.47065944]
[1646231260427,12.14937836,101.16,101.12,21.47065944]
[1646231261727,6.0,101.17,101.12,21.47065944]
[1646231262128,6.0,101.17,101.12,32.61929388]
[1646231262327,10.31581578,101.18,101.12,32.61929388]
[1646231263027,10.31581578,101.18,101.12,47.45059388]
[1646231263630,21.27015319,101.18,101.12,47.45059388]
[1646231263828,21.27015319,101.18,101.12,21.72065944]
[1646231264030,21.27015319,101.18,101.12,21.47065944]
[1646231264230,21.27015319,101.18,101.09,11.54]
[1646231264430,21.27015319,101.18,101.07,124.44]
[1646231264630,13.18435291,101.18,101.07,17.90971328]
[1646231264829,3.955,101.17,101.06,1.4865572]
[1646231265029,3.955,101.17,101.06,5.4415572]
[1646231265030,4.25135556,101.17,101.06,5.4415572]
[1646231265229,46.20329652,101.16,101.07,52.10338664]
[1646231265831,46.20329652,101.16,101.07,52.35338664]
[1646231266033,22.32520934,101.14,101.07,52.35338664]
[1646231266833,6.0,101.15,101.07,52.35338664]
[1646231267433,2.2300155,101.17,101.07,52.35338664]
[1646231267634,6.0,101.16,101.07,52.35338664]
[1646231267934,57.28950825,101.16,101.07,52.35338664]
[1646231268734,6.0,101.16,101.07,151.10338664]
[1646231268936,3.955,101.2,101.08,0.19936445]
[1646231269136,3.954,101.22,101.11,0.19936445]
[1646231269338,3.954,101.22,101.12,127.6153749]
[1646231269536,25.57995221,101.27,101.13,6.0]
[1646231269738,53.24038828,101.26,101.14,41.72176235]
[1646231269937,53.24038828,101.26,101.16,49.68541433]
[1646231270136,53.24038828,101.26,101.16,52.13900163]
[1646231270339,6.0,101.25,101.18,28.13607981]
[1646231270538,6.0,101.25,101.18,30.13644206]
[1646231270737,3.951,101.24,101.18,30.13644206]
[1646231271139,19.24011758,101.24,101.18,30.13644206]
[1646231271736,6.0,101.25,101.18,30.13644206]
[1646231272337,6.0,101.25,101.18,39.54944206]
[1646231272537,3.951,101.28,101.18,54.37184206]
[1646231272737,56.26254078,101.27,101.18,58.32284206]
[1646231273740,56.26254078,101.27,101.18,54.37184206]
[1646231274838,6.0,101.27,101.18,54.37184206]
[1646231275040,27.99275261,101.3,101.19,3.951]
[1646231275238,18.7719,101.31,101.19,3.951]
[1646231275239,3.951,101.31,101.21,17.11100325]
[1646231275441,3.951,101.31,101.21,36.13000325]
[1646231275640,17.3559155,101.32,101.21,36.13000325]
[1646231275840,17.3559155,101.32,101.22,51.65780643]
[1646231275841,2.2300155,101.32,101.22,51.65780643]
[1646231276141,6.0,101.31,101.23,6.0]
[1646231276345,6.0,101.31,101.23,38.93532978]
[1646231276741,14.8149,101.35,101.23,38.93532978]
[1646231276940,51.83919969,101.34,101.24,28.14172485]
[1646231277140,54.06921519,101.34,101.24,38.62945937]
[1646231278142,22.68930617,101.32,101.24,28.14172485]
[1646231278542,45.83919969,101.3,101.24,28.14172485]
[1646231278742,45.83919969,101.3,101.23,3.948]
[1646231278943,0.26171346,101.29,101.23,3.948]
[1646231279342,45.83919969,101.3,101.23,3.948]
[1646231279842,45.83919969,101.3,101.23,61.71905295]
[1646231280042,60.66029969,101.3,101.23,61.71905295]
[1646231280243,62.89031519,101.3,101.23,61.71905295]
[1646231281142,77.33701519,101.3,101.23,61.71905295]
[1646231281344,62.89031519,101.3,101.23,61.71905295]
[1646231281550,62.89031519,101.3,101.23,67.82505295]
[1646231281551,45.83919969,101.3,101.23,67.82505295]
[1646231281747,45.83919969,101.3,101.23,68.07505295]
[1646231281944,45.83919969,101.3,101.23,70.44159613]
[1646231282344,45.83919969,101.3,101.23,68.07505295]
[1646231282547,45.83919969,101.3,101.23,70.2342923]
[1646231282943,6.0,101.29,101.23,64.1282923]
[1646231283344,45.83919969,101.3,101.23,64.1282923]
[1646231283745,22.68930617,101.28,101.23,61.96905295]
[1646231283943,22.68930617,101.28,101.23,61.71905295]
[1646231284146,22.68930617,101.28,101.2,17.09769528]
[1646231284344,22.68930617,101.28,101.2,0.25]
[1646231284550,2.2300155,101.27,101.18,6.0]
[1646231284748,2.2300155,101.27,101.14,28.08555875]
[1646231284949,2.2300155,101.27,101.15,118.37480748]
[1646231285146,42.93823848,101.26,101.16,55.16434152]
[1646231285746,42.93823848,101.26,101.16,55.41434152]
[1646231286147,42.93823848,101.26,101.16,70.23874152]
[1646231286752,25.59026738,101.24,101.16,70.23874152]
[1646231286949,25.59026738,101.24,101.16,55.16434152]
[1646231287151,40.41966738,101.24,101.16,55.16434152]
[1646231287950,42.93823848,101.22,101.16,52.80175116]
[1646231288351,42.93823848,101.22,101.16,53.05175116]
[1646231289950,42.93823848,101.22,101.14,17.10100049]
[1646231290152,45.16825398,101.22,101.12,2.54904003]
[1646231290351,45.16825398,101.22,101.1,6.6440351]
[1646231290352,0.32939756,101.21,101.1,1.4865572]
[1646231290653,0.32939756,101.19,101.1,1.4865572]
[1646231290957,25.59026738,101.17,101.11,59.9297222]
[1646231291550,24.10371018,101.17,101.11,59.9297222]
[1646231292152,6.0,101.16,101.11,59.9297222]
[1646231293652,6.0,101.19,101.11,62.60628372]
[1646231293852,6.0,101.19,101.11,62.35628372]
[1646231294055,6.0,101.19,101.11,62.60628372]
[1646231294251,9.954,101.19,101.11,62.35628372]
[1646231294454,55.72950695,101.18,101.11,62.35628372]
[1646231295654,55.72950695,101.18,101.11,62.60628372]
[1646231296056,55.72950695,101.18,101.11,62.35628372]
[1646231296456,55.72950695,101.18,101.09,2.3173938]
[1646231296656,55.72950695,101.18,101.09,0.25]
[1646231297481,55.72950695,101.18,101.08,45.58329153]
[1646231297680,72.79832245,101.18,101.08,45.58329153]
[1646231298080,11.3124417,101.16,101.08,45.58329153]
[1646231298279,55.72950695,101.14,101.08,45.58329153]
[1646231298482,55.72950695,101.14,101.07,2.54904003]
[1646231298680,55.72950695,101.14,101.04,121.64961123]
[1646231298880,78.65022245,101.14,101.04,115.1445712]
[1646231299480,177.40022245,101.14,101.04,46.75587136]
[1646231299685,181.35622245,101.14,101.04,46.75587136]
[1646231299886,181.35622245,101.14,101.03,2.39657444]
[1646231299887,240.49622245,101.14,101.01,3.956]
[1646231300083,0.41680458,101.13,101.01,3.956]
[1646231300283,0.41680458,101.11,100.99,118.74880328]
[1646231300485,8.69680458,101.11,100.99,114.79280328]
[1646231300784,0.41680458,101.09,100.99,1.89280328]
[1646231300985,0.41680458,101.09,100.97,53.0591211]
[1646231300986,44.75012043,101.08,100.97,53.0591211]
[1646231301185,55.29813593,101.08,100.97,53.0591211]
[1646231301386,0.41680458,101.07,100.97,53.0591211]
[1646231301585,22.29182822,101.05,100.97,53.0591211]
[1646231302085,6.0,101.04,100.97,53.0591211]
[1646231302287,6.0,101.04,100.97,55.02998326]
[1646231302682,15.5,101.1,100.97,55.02998326]
[1646231302683,3.96,101.1,100.97,55.02998326]
[1646231302883,3.959,101.11,100.98,2.959]
[1646231303085,2.2300155,101.13,100.99,11.54]
[1646231303384,14.8975,101.14,100.99,11.79]
[1646231303583,45.88176483,101.13,101.0,28.73571707]
[1646231303783,48.11178033,101.13,101.0,27.98571707]
[1646231303985,22.57698841,101.11,101.0,27.98571707]
[1646231304184,22.16018383,101.11,101.0,42.83311707]
[1646231304388,6.0,101.12,101.0,39.52571707]
[1646231304685,6.0,101.12,101.0,47.82571707]
[1646231304686,9.958,101.12,101.0,47.82571707]
[1646231305586,50.21274951,101.11,101.0,47.82571707]
[1646231305989,50.21274951,101.11,101.01,14.8458]
[1646231306187,50.21274951,101.11,101.02,50.55020663]
[1646231306486,50.21274951,101.11,101.02,50.80020663]
[1646231306887,17.0785155,101.13,101.02,50.80020663]
[1646231307087,3.956,101.13,101.02,65.64440663]
[1646231307991,45.32913983,101.12,101.02,65.64440663]
[1646231308189,22.71280883,101.1,101.02,65.64440663]
[1646231308992,22.71280883,101.1,101.02,50.80020663]
[1646231311194,22.71280883,101.1,101.02,50.55020663]
[1646231312996,6.0,101.09,101.02,50.55020663]
[1646231313397,14.8482,101.12,101.02,50.55020663]
[1646231313802,17.0782155,101.12,101.02,50.55020663]
[1646231314400,52.25225127,101.11,101.02,50.55020663]
[1646231314603,6.0,101.1,101.02,50.55020663]
[1646231314802,15.78969739,101.09,101.02,50.55020663]
[1646231315504,6.0,101.1,101.02,50.55020663]
[1646231315705,3.958,101.13,101.02,158.05120663]
[1646231315905,166.28448012,101.22,101.02,231.28024666]
[1646231315906,6.0,101.12,101.02,231.28024666]
[1646231316104,3.956,101.17,101.04,100.9845947]
[1646231316305,3.956,101.17,101.05,116.29]
[1646231316504,59.31635116,101.17,101.06,32.20425574]
[1646231316704,6.0,101.16,101.06,43.99425574]
[1646231316905,59.31635116,101.17,101.09,48.27236959]
[1646231317107,3.955,101.18,101.09,58.55552865]
[1646231317404,6.0,101.17,101.09,168.84552865]
[1646231317608,3.955,101.23,101.09,168.84552865]
[1646231317609,6.0,101.22,101.09,171.39456868]
[1646231317807,3.954,101.21,101.1,107.15198762]
[1646231318008,3.954,101.21,101.11,110.29]
[1646231318207,3.954,101.21,101.12,32.43140776]
[1646231318409,3.954,101.21,101.12,51.45540776]
[1646231319010,3.954,101.21,101.12,66.28620776]
[1646231319409,17.51615955,101.2,101.12,66.28620776]
[1646231319610,6.0,101.22,101.12,66.28620776]
[1646231320309,14.8997,101.24,101.12,66.28620776]
[1646231320711,74.29447621,101.25,101.12,165.03620776]
[1646231320910,59.46537621,101.25,101.15,50.36418328]
[1646231321113,55.51337621,101.25,101.17,32.42677901]
[1646231321313,55.51337621,101.25,101.17,32.67677901]
[1646231321913,14.6886,101.27,101.17,32.67677901]
[1646231322112,14.8844,101.28,101.17,148.79961904]
[1646231322315,14.8844,101.28,101.18,9.951]
[1646231322515,26.90140302,101.31,101.18,31.81786115]
[1646231322719,3.951,101.31,101.18,34.36690118]
[1646231323015,53.49749104,101.3,101.19,48.27236959]
[1646231323216,26.90040302,101.33,101.21,32.19507909]
[1646231323518,26.90040302,101.33,101.22,7.95844875]
[1646231323717,27.43893552,101.35,101.23,11.54]
[1646231323921,3.948,101.35,101.24,6.0]